bitfinex/quotes_BTCUSD_20250109
["timestamp","ask_amount","ask_price","bid_price","bid_amount"]
[1736448807433,0.003,93139.0,93133.0,0.214744]
[1736448807844,1.43240556,93145.0,93133.0,0.214744]
[1736448808045,0.004,93143.0,93133.0,0.214744]
[1736448808274,0.214725,93142.0,93133.0,0.214744]
[1736448808962,0.003,93139.0,93133.0,0.215744]
[1736448809165,0.003,93139.0,93133.0,0.214744]
[1736448809370,0.003,93139.0,93133.0,0.215744]
[1736448809749,0.214735,93138.0,93133.0,0.001]
[1736448809949,0.214737,93137.0,93133.0,0.001]
[1736448810920,0.214759,93128.0,93118.0,0.21478]
[1736448811120,1.06753773,93129.0,93122.0,0.21477]
[1736448811325,0.0762,93127.0,93110.0,0.214799]
[1736448811532,0.049,93126.0,93101.0,0.00828]
[1736448811729,0.049,93126.0,93102.0,0.10429976]
[1736448811730,0.214781,93118.0,93102.0,0.10429976]
[1736448811952,0.049,93126.0,93107.0,0.429612]
[1736448811953,0.214775,93121.0,93107.0,0.429612]
[1736448812988,0.214783,93118.0,93107.0,0.214806]
[1736448813278,0.214783,93118.0,93080.0,0.13312774]
[1736448813279,0.25429976,93117.0,93080.0,0.0766]
[1736448813530,0.214817,93103.0,93092.0,0.214839]
[1736448813730,1.06753773,93103.0,93099.0,0.214823]
[1736448813872,0.2148,93110.0,93099.0,0.429647]
[1736448814077,0.2148,93110.0,93099.0,0.214823]
[1736448814732,0.15,93117.0,93082.0,0.214864]
[1736448814931,0.15,93117.0,93107.0,0.002]
[1736448814932,0.15,93115.0,93107.0,0.002]
[1736448815141,0.001,93110.0,93103.0,0.214815]
[1736448815369,0.001,93110.0,93107.0,0.214804]
[1736448815976,0.001,93110.0,93107.0,0.429609]
[1736448816328,0.001,93110.0,93107.0,0.42060898]
[1736448816530,0.01958801,93118.0,93104.0,0.214811]
[1736448816737,0.214766,93125.0,93108.0,0.214804]
[1736448817267,0.001,93117.0,93108.0,0.214804]
[1736448817463,0.001,93117.0,93114.0,0.21479]
[1736448817879,0.214769,93123.0,93114.0,0.21479]
[1736448818658,0.21491778,93123.0,93114.0,0.21479]
[1736448820105,0.001,93117.0,93114.0,0.21479]
[1736448820315,0.001,93117.0,93105.0,0.10429976]
[1736448820528,0.001,93117.0,93083.0,0.0767]
[1736448820529,0.214811,93106.0,93083.0,0.0767]
[1736448820746,1.28234873,93106.0,93093.0,0.214837]
[1736448821397,1.28234873,93106.0,93094.0,0.214836]
[1736448821807,0.00014878,93123.0,93122.0,0.214772]
[1736448822019,0.00014878,93123.0,93122.0,0.31907176]
[1736448822453,0.00014878,93123.0,93122.0,0.50857174]
[1736448822661,0.00014878,93123.0,93122.0,0.53157174]
[1736448822874,7.8e-07,93123.0,93122.0,0.53157174]
[1736448823094,7.8e-07,93123.0,93122.0,0.6358715]
[1736448824225,7.8e-07,93123.0,93122.0,0.6388715]
[1736448824458,7.8e-07,93123.0,93122.0,0.75680397]
[1736448824645,7.8e-07,93123.0,93122.0,0.76380397]
[1736448824833,7.8e-07,93123.0,93122.0,0.75680397]
[1736448825207,7.8e-07,93123.0,93122.0,0.76480397]
[1736448825408,0.0001708,93151.0,93150.0,0.214707]
[1736448825609,0.00066662,93151.0,93150.0,0.34047746]
[1736448825810,0.00066662,93151.0,93150.0,0.42357746]
[1736448827580,0.00066662,93151.0,93150.0,0.42757746]
[1736448827987,0.00066662,93151.0,93150.0,0.42957746]
[1736448828223,0.00066662,93151.0,93150.0,0.42757746]
[1736448828724,6.2e-07,93151.0,93150.0,0.45857746]
[1736448828907,6.2e-07,93151.0,93150.0,0.99147744]
[1736448829229,6.2e-07,93151.0,93150.0,1.00872651]
[1736448830252,6.2e-07,93151.0,93150.0,1.00472651]
[1736448830450,6.2e-07,93151.0,93150.0,0.97775744]
[1736448831292,6.2e-07,93151.0,93150.0,0.96975744]
[1736448831512,6.2e-07,93151.0,93150.0,0.96475744]
[1736448831670,6.2e-07,93151.0,93150.0,0.97375744]
[1736448831875,6.2e-07,93151.0,93150.0,0.95228674]
[1736448832501,6.2e-07,93151.0,93150.0,0.85190674]
[1736448832705,6.2e-07,93151.0,93150.0,0.32800676]
[1736448832902,6.2e-07,93151.0,93150.0,0.223707]
[1736448833099,6.2e-07,93151.0,93150.0,0.214707]
[1736448833275,6.2e-07,93151.0,93150.0,0.218707]
[1736448833734,6.2e-07,93151.0,93150.0,0.214707]
[1736448834093,6.2e-07,93151.0,93150.0,0.215707]
[1736448834522,6.2e-07,93151.0,93150.0,0.31900676]
[1736448834941,6.2e-07,93151.0,93150.0,0.33000676]
[1736448835286,6.2e-07,93151.0,93150.0,0.34400676]
[1736448835488,6.2e-07,93151.0,93150.0,0.35200676]
[1736448835819,6.2e-07,93151.0,93150.0,0.34400676]
[1736448836027,6.2e-07,93151.0,93150.0,0.36095715]
[1736448836237,6.2e-07,93151.0,93150.0,0.35895715]
[1736448836633,6.2e-07,93151.0,93150.0,0.36195715]
[1736448836832,6.2e-07,93151.0,93150.0,0.32928674]
[1736448840436,6.2e-07,93151.0,93150.0,0.32100674]
[1736448841061,6.2e-07,93151.0,93150.0,0.31200672]
[1736448841501,0.13312774,93160.0,93152.0,0.214702]
[1736448841678,1.06753773,93165.0,93162.0,0.214679]
[1736448843074,1.06753773,93165.0,93158.0,0.214687]
[1736448843478,1.06753773,93165.0,93162.0,0.214679]
[1736448844189,1.06753773,93165.0,93162.0,0.216679]
[1736448845275,1.06753773,93165.0,93162.0,0.002]
[1736448845993,1.06753773,93165.0,93158.0,0.20768698]
[1736448847021,1.06753773,93165.0,93161.0,0.21468]
[1736448847645,1.06753773,93165.0,93158.0,0.24992498]
[1736448847848,1.06753773,93165.0,93158.0,0.20968698]
[1736448848314,1.06753773,93165.0,93161.0,0.21468]
[1736448848527,1.06753773,93165.0,93161.0,0.002]
[1736448848693,1.06753773,93165.0,93158.0,0.214686]
[1736448848862,1.06753773,93165.0,93161.0,0.214679]
[1736448849494,1.06753773,93165.0,93161.0,0.42936]
[1736448850105,1.06753773,93165.0,93161.0,0.214679]
[1736448850514,1.06753773,93165.0,93158.0,0.214688]
[1736448850889,1.06753773,93165.0,93158.0,0.20768798]
[1736448851090,1.06753773,93165.0,93133.0,0.1]
[1736448851091,0.214692,93157.0,93125.0,0.0756]
[1736448851291,0.13312774,93135.0,93131.0,0.214749]
[1736448851520,1.20066547,93141.0,93131.0,0.214749]
[1736448851923,0.214736,93138.0,93109.0,0.01781143]
[1736448852127,0.13312774,93121.0,93106.0,0.0787]
[1736448852339,0.13312774,93121.0,93107.0,0.10429976]
[1736448852543,0.13312774,93121.0,93118.0,0.214779]
[1736448852782,1.06753773,93125.0,93118.0,0.214779]
[1736448853858,1.06753773,93125.0,93119.0,0.214778]
[1736448854025,1.06753773,93125.0,93115.0,0.214786]
[1736448854384,0.21476,93127.0,93115.0,0.214786]
[1736448854800,0.21376,93127.0,93118.0,0.214779]
[1736448854994,0.01804272,93127.0,93122.0,0.21477]
[1736448855197,0.13312774,93128.0,93118.0,0.0429565]
[1736448855407,0.13312774,93128.0,93124.0,0.214766]
[1736448855748,1.06753773,93129.0,93124.0,0.214766]
[1736448855952,1.08490308,93131.0,93124.0,0.20576598]
[1736448856357,1.06653773,93131.0,93124.0,0.20576598]
[1736448856570,0.214744,93134.0,93123.0,0.214769]
[1736448856792,1.06753773,93135.0,93127.0,0.21476]
[1736448856989,1.06753773,93150.0,93128.0,0.10429976]
[1736448857221,0.214709,93149.0,93133.0,0.213746]
[1736448857335,0.15,93148.0,93134.0,0.214744]
[1736448857951,1.08523692,93150.0,93134.0,0.214744]
[1736448857952,0.002,93135.0,93134.0,0.214744]
[1736448858745,0.002,93135.0,93134.0,0.21523982]
[1736448859286,0.214716,93147.0,93134.0,0.21823982]
[1736448860388,0.215716,93147.0,93134.0,0.21823982]
[1736448860620,0.001,93147.0,93134.0,0.00349582]
[1736448860821,0.214741,93136.0,93134.0,0.00349582]
[1736448861056,0.214769,93123.0,93106.0,0.08698]
[1736448861281,1.06753773,93125.0,93111.0,0.214795]
[1736448861448,1.28230373,93125.0,93112.0,0.214795]
[1736448861858,1.28230373,93125.0,93117.0,0.214783]
[1736448862597,1.06753773,93125.0,93117.0,0.214783]
[1736448862803,1.06753773,93125.0,93110.0,0.214799]
[1736448863007,1.06753773,93125.0,93114.0,0.21479]
[1736448863692,1.06753773,93125.0,93109.0,0.00014878]
[1736448863693,0.214778,93120.0,93109.0,0.00014878]
[1736448863927,0.214778,93120.0,93109.0,0.21494778]
[1736448865107,0.0158792,93120.0,93112.0,0.214793]
[1736448865309,0.214769,93123.0,93112.0,0.214793]
[1736448865914,0.214769,93123.0,93112.0,0.20579298]
[1736448866127,0.214769,93123.0,93110.0,0.214799]
[1736448866548,0.23136635,93123.0,93110.0,0.214799]
[1736448866925,0.214778,93120.0,93109.0,0.00014878]
[1736448867330,0.13312774,93119.0,93109.0,0.00014878]
[1736448867735,0.214798,93111.0,93109.0,0.00014878]
[1736448867979,0.15,93110.0,93109.0,0.00014878]
[1736448868190,0.38219976,93110.0,93109.0,0.00014878]
[1736448868602,0.2779,93110.0,93109.0,0.00114878]
[1736448869229,0.2779,93110.0,93109.0,0.00014878]
[1736448869956,0.2819,93110.0,93109.0,0.00014878]
[1736448870176,0.02026483,93110.0,93109.0,0.00014878]
[1736448870381,0.006,93110.0,93109.0,0.00014878]
[1736448871009,0.006,93110.0,93109.0,0.10429976]
[1736448871254,0.006,93110.0,93109.0,0.18797373]
[1736448871455,0.002,93110.0,93109.0,0.18689976]
[1736448871897,0.006,93110.0,93109.0,0.18689976]
[1736448872315,0.14917422,93130.0,93109.0,0.18689976]
[1736448872515,0.14917422,93130.0,93126.0,0.214761]
[1736448872690,0.01604648,93130.0,93126.0,0.214761]
[1736448874101,1.26718837,93136.0,93123.0,0.214769]
[1736448874308,1.06753773,93136.0,93126.0,0.001]
[1736448874523,0.214682,93161.0,93127.0,0.10429976]
[1736448874524,0.0162469,93139.0,93127.0,0.10429976]
[1736448874739,0.0162469,93139.0,93136.0,0.214738]
[1736448874943,1.06753773,93147.0,93136.0,0.214738]
[1736448875160,0.214711,93149.0,93136.0,0.214738]
[1736448875403,0.214711,93149.0,93127.0,0.10429976]
[1736448875404,0.01598294,93147.0,93137.0,0.042948]
[1736448875640,1.06753773,93149.0,93146.0,0.214716]
[1736448875847,0.01601715,93152.0,93144.0,0.214719]
[1736448876055,0.01601715,93152.0,93131.0,0.077]
[1736448876258,0.214702,93153.0,93142.0,0.214725]
[1736448876679,0.004,93149.0,93142.0,0.214725]
[1736448876864,0.002,93149.0,93142.0,0.214725]
[1736448877313,0.002,93149.0,93129.0,0.214754]
[1736448877314,1.06753773,93149.0,93129.0,0.214754]
[1736448877726,0.10429976,93148.0,93144.0,0.001]
[1736448878315,0.214714,93147.0,93144.0,0.001]
[1736448878548,0.31901376,93147.0,93144.0,0.001]
[1736448878758,0.214714,93147.0,93144.0,0.001]
[1736448878962,1.06753773,93149.0,93144.0,0.001]
[1736448879172,1.06953773,93149.0,93144.0,0.214719]
[1736448879419,1.06953773,93149.0,93124.0,0.214767]
[1736448879638,0.02061605,93149.0,93125.0,0.10537336]
[1736448879846,0.00049591,93153.0,93149.0,0.214708]
[1736448880494,0.00049591,93153.0,93149.0,0.429417]
[1736448880715,0.02118522,93153.0,93149.0,0.429417]
[1736448881095,0.00049591,93153.0,93149.0,0.429417]
[1736448881492,0.00049591,93153.0,93149.0,0.4938304]
[1736448881715,0.00049591,93153.0,93149.0,0.429417]
[1736448882174,0.00049591,93153.0,93149.0,0.42041698]
[1736448882380,0.00049591,93153.0,93149.0,0.42141698]
[1736448882542,0.00049591,93153.0,93149.0,0.42041698]
[1736448883586,0.00049591,93153.0,93149.0,0.42341698]
[1736448884440,0.00049591,93153.0,93149.0,0.20870798]
[1736448885317,0.00049591,93153.0,93149.0,0.20570798]
[1736448885777,0.00049591,93153.0,93149.0,0.20970798]
[1736448885962,0.00049591,93153.0,93149.0,0.20070796]
[1736448886215,0.00049591,93153.0,93149.0,0.19970796]
[1736448886607,0.00049591,93153.0,93149.0,0.20070796]
[1736448887347,0.21519791,93153.0,93149.0,0.004]
[1736448888357,0.21519791,93153.0,93149.0,0.001]
[1736448888560,0.21519791,93153.0,93140.0,0.214729]
[1736448888879,0.19965064,93150.0,93149.0,0.003]
[1736448889085,1.06753773,93150.0,93149.0,0.001]
[1736448889527,1.06753773,93150.0,93143.0,0.214721]
[1736448890330,0.214709,93149.0,93141.0,0.214727]
[1736448890539,0.214709,93149.0,93133.0,0.214746]
[1736448890540,0.214718,93146.0,93133.0,0.429492]
[1736448890924,0.214725,93142.0,93130.0,0.214752]
[1736448891138,0.19965064,93143.0,93134.0,0.214742]
[1736448893395,0.214725,93143.0,93134.0,0.214742]
[1736448896087,0.214725,93143.0,93134.0,0.20574198]
[1736448896738,0.13308053,93144.0,93134.0,0.20574198]
[1736448897202,0.15,93149.0,93135.0,0.214742]
[1736448897445,0.00049591,93153.0,93146.0,0.214715]
[1736448897715,0.00049591,93153.0,93150.0,0.214707]
[1736448897980,0.00049591,93153.0,93147.0,0.214714]
[1736448898497,0.13308053,93160.0,93138.0,0.0793]
[1736448898697,0.00014868,93158.0,93155.0,0.214695]
[1736448899270,0.00014868,93158.0,93155.0,0.42939]
[1736448899977,0.00014868,93158.0,93157.0,0.214691]
[1736448900844,0.00014868,93158.0,93157.0,0.31899076]
[1736448901042,0.00014868,93158.0,93157.0,0.30999074]
[1736448901240,0.00014868,93158.0,93157.0,0.31299074]
[1736448901869,0.00014868,93158.0,93157.0,0.37049074]
[1736448902434,0.00014868,93158.0,93157.0,0.36749074]
[1736448902825,0.00014868,93158.0,93157.0,0.37149074]
[1736448903437,0.00014868,93158.0,93157.0,0.32299074]
[1736448906045,0.00014868,93158.0,93157.0,0.31399072]
[1736448908007,0.00014868,93158.0,93157.0,0.20969096]
[1736448908212,0.00014868,93158.0,93157.0,0.013]
[1736448909252,0.00014868,93158.0,93157.0,0.009]
[1736448909749,0.00014868,93158.0,93157.0,0.011]
[1736448909937,0.02063337,93158.0,93157.0,0.011]
[1736448910144,0.00014868,93158.0,93157.0,0.009]
[1736448910523,0.00114868,93158.0,93157.0,0.009]
[1736448910727,0.214701,93153.0,93140.0,0.214729]
[1736448910933,0.214711,93149.0,93140.0,0.20572898]
[1736448911140,1.28224873,93149.0,93140.0,0.20572898]
[1736448911949,1.06753773,93149.0,93128.0,0.214758]
[1736448912150,1.06753773,93149.0,93141.0,0.214728]
[1736448912369,1.06753773,93149.0,93140.0,0.001]
[1736448912515,1.06753773,93149.0,93147.0,0.214713]
[1736448913149,0.00014868,93158.0,93155.0,0.214695]
[1736448913615,0.00014868,93158.0,93155.0,0.42939]
[1736448914116,0.00014868,93158.0,93155.0,0.214695]
[1736448915963,0.00014868,93158.0,93155.0,0.20569498]
[1736448916302,0.00114868,93158.0,93155.0,0.20569498]
[1736448918458,0.00314868,93158.0,93152.0,0.214701]
[1736448919249,0.00214868,93158.0,93152.0,0.214701]
[1736448919447,0.00314868,93158.0,93152.0,0.214701]
[1736448919675,0.00114868,93158.0,93152.0,0.214701]
[1736448919921,0.00014868,93158.0,93152.0,0.214701]
[1736448920884,0.00014868,93158.0,93152.0,0.215701]
[1736448921096,0.00014868,93158.0,93152.0,0.20670098]
[1736448921273,0.00214868,93158.0,93152.0,0.20670098]
[1736448921455,0.00014868,93158.0,93152.0,0.20670098]
[1736448922070,0.00014868,93158.0,93148.0,0.21471]
[1736448922274,0.00014868,93158.0,93117.0,0.60150136]
[1736448922275,0.18019976,93157.0,93127.0,0.0806]
[1736448922484,0.13308053,93150.0,93127.0,0.18489976]
[1736448922720,1.20061826,93150.0,93141.0,0.214726]
[1736448922926,1.06753773,93150.0,93141.0,0.214726]
[1736448923122,1.06753773,93150.0,93127.0,0.18489976]
[1736448923320,1.20061826,93150.0,93128.0,0.32013136]
[1736448923544,1.06753773,93150.0,93146.0,0.214716]
[1736448923751,0.15014868,93158.0,93146.0,0.214716]
[1736448924099,0.001,93150.0,93146.0,0.214716]
[1736448924318,0.001,93150.0,93147.0,0.0779]
[1736448924515,0.001,93150.0,93148.0,0.214712]
[1736448925355,0.0205247,93158.0,93156.0,0.214693]
[1736448926003,0.0205247,93158.0,93156.0,0.20569298]
[1736448926630,0.00014868,93158.0,93156.0,0.20569298]
[1736448927004,0.00014868,93158.0,93156.0,0.20769298]
[1736448927443,0.00014868,93158.0,93157.0,0.0637094]
[1736448927607,0.00014868,93158.0,93157.0,0.10429976]
[1736448929024,0.00014868,93158.0,93157.0,0.1827731]
[1736448929813,0.00014868,93158.0,93157.0,0.1867731]
[1736448930253,0.00014868,93158.0,93157.0,0.52647814]
[1736448930458,0.00014868,93158.0,93157.0,0.62970456]
[1736448930666,0.00014868,93158.0,93157.0,0.63870456]
[1736448930667,0.00114868,93158.0,93157.0,0.63870456]
[1736448931117,0.00014868,93158.0,93157.0,0.62970456]
[1736448931321,0.00114868,93158.0,93157.0,0.5344048]
[1736448931514,0.00114868,93158.0,93157.0,0.5394048]
[1736448940223,6.8e-07,93158.0,93157.0,0.6394048]
[1736448941451,6.8e-07,93158.0,93157.0,1.1813048]
[1736448942042,6.8e-07,93158.0,93157.0,0.9813048]
[1736448942254,6.8e-07,93158.0,93157.0,0.19569976]
[1736448942464,6.8e-07,93158.0,93157.0,0.11829976]
[1736448942922,6.8e-07,93158.0,93157.0,0.014]
[1736448943559,6.8e-07,93158.0,93157.0,0.16173906]
[1736448943773,6.8e-07,93158.0,93157.0,0.19949976]
[1736448944002,8.52e-05,93174.0,93157.0,0.19049976]
[1736448944213,0.00013839,93174.0,93173.0,0.214654]
[1736448945735,0.00013839,93174.0,93173.0,0.218654]
[1736448945906,0.00013839,93174.0,93173.0,0.214654]
[1736448946105,0.00013839,93174.0,93173.0,0.20565398]
[1736448946414,0.00013839,93174.0,93173.0,0.20665398]
[1736448947065,0.00013839,93174.0,93171.0,0.214658]
[1736448947275,0.00013839,93174.0,93173.0,0.004]
[1736448948060,0.00013839,93174.0,93160.0,0.214684]
[1736448948061,0.00013839,93174.0,93163.0,0.214675]
[1736448948264,0.13308053,93173.0,93163.0,0.214675]
[1736448948858,0.00013839,93174.0,93167.0,0.214667]
[1736448949518,0.00013839,93174.0,93173.0,0.001]
[1736448950914,0.00013839,93174.0,93167.0,0.214667]
[1736448951119,0.00013839,93174.0,93167.0,0.20566698]
[1736448951325,0.00213839,93174.0,93167.0,0.20566698]
[1736448951558,0.00013839,93174.0,93167.0,0.20566698]
[1736448951734,0.00013839,93174.0,93173.0,0.001]
[1736448951934,0.00113839,93174.0,93173.0,0.001]
[1736448952138,0.00113839,93174.0,93167.0,0.20566698]
[1736448952342,0.00013839,93174.0,93167.0,0.20666698]
[1736448952549,0.00013839,93174.0,93170.0,0.214661]
[1736448954266,0.00013839,93174.0,93173.0,0.001]
[1736448954422,0.00013839,93174.0,93170.0,0.214661]
[1736448955005,0.00013839,93174.0,93172.0,0.214656]
[1736448955211,0.00013839,93174.0,93173.0,0.11361288]
[1736448956039,0.00013839,93174.0,93173.0,0.10461286]
[1736448956663,0.00013839,93174.0,93173.0,0.10661286]
[1736448956863,0.00013839,93174.0,93173.0,0.25661286]
[1736448957057,0.00013839,93174.0,93173.0,0.25553974]
[1736448957461,0.00013839,93174.0,93173.0,0.26153974]
[1736448958573,0.00013839,93174.0,93173.0,0.3888395]
[1736448958782,0.00013839,93174.0,93173.0,0.28453974]
[1736448960421,0.0001704,93189.0,93173.0,0.28453974]
[1736448960422,0.13308053,93190.0,93173.0,0.008]
[1736448960814,0.34769553,93190.0,93179.0,0.214639]
[1736448961054,0.214615,93190.0,93179.0,0.20563898]
[1736448961388,0.214615,93190.0,93180.0,0.0428282]
[1736448961605,0.002,93190.0,93187.0,0.21462]
[1736448962013,0.001,93190.0,93187.0,0.21462]
[1736448962186,0.003,93190.0,93187.0,0.21462]
[1736448962390,0.002,93190.0,93181.0,0.214636]
[1736448962627,0.002,93190.0,93182.0,0.214633]
[1736448962776,0.003,93190.0,93177.0,0.214643]
[1736448962984,0.003,93190.0,93185.0,0.214625]
[1736448963180,0.003,93190.0,93189.0,0.214617]
[1736448963389,0.03109497,93198.0,93189.0,0.214617]
[1736448963585,0.03109497,93198.0,93186.0,0.0214625]
[1736448963586,0.00014865,93202.0,93197.0,0.213599]
[1736448963794,0.00014865,93202.0,93197.0,0.211599]
[1736448964357,0.00014865,93202.0,93197.0,0.209599]
[1736448965087,0.214598,93198.0,93185.0,0.214625]
[1736448965297,0.13308053,93200.0,93186.0,0.214624]
[1736448965698,0.03718416,93202.0,93186.0,0.214624]
[1736448965956,0.214594,93199.0,93187.0,0.214622]
[1736448966338,0.214602,93196.0,93186.0,0.20562398]
[1736448966549,8.51e-05,93209.0,93187.0,0.10537288]
[1736448966783,0.00017548,93209.0,93188.0,0.0840729]
[1736448966992,0.00017548,93209.0,93207.0,0.210574]
[1736448967842,0.00017548,93209.0,93188.0,0.083]
[1736448968063,0.214583,93204.0,93194.0,0.214605]
[1736448970457,0.214583,93204.0,93194.0,0.216605]
[1736448970671,0.21458,93205.0,93194.0,0.216606]
[1736448971058,0.21458,93205.0,93194.0,0.20760598]
[1736448971511,1.28211773,93205.0,93194.0,0.20760598]
[1736448971692,1.28211773,93205.0,93194.0,0.20860598]
[1736448971887,1.06753773,93205.0,93197.0,0.214597]
[1736448972560,1.06753773,93205.0,93202.0,0.429173]
[1736448972776,0.21474748,93209.0,93198.0,0.214596]
[1736448972974,0.00017548,93209.0,93204.0,0.214582]
[1736448974379,0.00017548,93209.0,93201.0,0.214589]
[1736448975733,0.00017548,93209.0,93202.0,0.0832]
[1736448975933,0.00017548,93209.0,93202.0,0.1130795]
[1736448976135,0.00017548,93209.0,93206.0,0.20557698]
[1736448976538,0.00017548,93209.0,93208.0,0.214573]
[1736448976740,0.00017548,93209.0,93208.0,0.31887276]
[1736448977183,0.00017548,93209.0,93208.0,0.42107276]
[1736448977388,0.00017548,93209.0,93208.0,0.50910818]
[1736448977723,0.00017548,93209.0,93208.0,0.51110818]
[1736448977922,0.00017548,93209.0,93208.0,0.54321986]
[1736448978520,0.00017548,93209.0,93208.0,0.54121986]
[1736448978720,0.00017548,93209.0,93208.0,0.59761986]
[1736448978970,0.00017548,93209.0,93208.0,0.46271276]
[1736448979141,0.00017548,93209.0,93208.0,0.46171276]
[1736448979547,0.00017548,93209.0,93208.0,0.46671276]
[1736448983777,0.00017548,93209.0,93208.0,0.45847276]
[1736448983978,0.00017548,93209.0,93208.0,0.42031276]
[1736448984184,0.00017548,93209.0,93208.0,0.41207276]
[1736448984816,0.00017548,93209.0,93208.0,0.014]
[1736448985662,0.00017548,93209.0,93208.0,0.009]
[1736448986097,0.00017548,93209.0,93208.0,0.00099998]
[1736448986307,1.06771321,93209.0,93208.0,0.00099998]
[1736448986515,0.214583,93204.0,93192.0,0.222848]
[1736448986692,0.214573,93208.0,93196.0,0.214601]
[1736448987325,0.429147,93208.0,93196.0,0.214601]
[1736448988133,0.429147,93208.0,93196.0,0.216601]
[1736448988659,0.429147,93208.0,93196.0,0.217601]
[1736448989757,0.214583,93204.0,93196.0,0.003]
[1736448990674,0.214583,93204.0,93192.0,0.222848]
[1736448990880,0.214583,93204.0,93192.0,0.21384798]
[1736448991087,1.06771321,93209.0,93184.0,0.290527]
[1736448991088,0.13308053,93202.0,93196.0,0.004]
[1736448991303,0.0454,93206.0,93196.0,0.004]
[1736448991509,0.214595,93199.0,93196.0,0.003]
[1736448991726,1.06753773,93199.0,93196.0,0.003]
[1736448992542,1.06753773,93208.0,93198.0,0.214596]
[1736448992737,1.06753773,93208.0,93204.0,0.214583]
[1736448993618,1.07053773,93208.0,93204.0,0.214583]
[1736448994040,1.06753773,93208.0,93204.0,0.214583]
[1736448994251,1.06753773,93208.0,93204.0,0.215583]
[1736448994791,1.06753773,93208.0,93204.0,0.001]
[1736448994993,1.06753773,93208.0,93204.0,0.002]
[1736448995420,1.06753773,93208.0,93204.0,0.001]
[1736448995885,1.06853773,93208.0,93204.0,0.001]
[1736448996113,1.06853773,93208.0,93203.0,0.20658498]
[1736448996899,1.07153773,93208.0,93203.0,0.20658498]
[1736448997310,1.06753773,93208.0,93203.0,0.20658498]
[1736448997685,1.06753773,93208.0,93204.0,0.001]
[1736448998132,1.06753773,93208.0,93199.0,0.214594]
[1736448998496,1.06753773,93208.0,93203.0,0.001]
[1736448998918,1.06753773,93208.0,93199.0,0.214594]
[1736448999758,1.06753773,93208.0,93202.0,0.214585]
[1736449000707,0.02765819,93209.0,93205.0,0.214579]
[1736449000708,0.00017548,93209.0,93205.0,0.214579]
[1736449001123,0.001,93208.0,93205.0,0.214579]
[1736449001642,0.00017548,93209.0,93205.0,0.214579]
[1736449002064,0.00017548,93209.0,93205.0,0.20557898]
[1736449002487,0.00017548,93209.0,93205.0,0.20857898]
[1736449003730,0.00017548,93209.0,93205.0,0.20657898]
[1736449003925,0.00017548,93209.0,93205.0,0.20557898]
[1736449004190,0.00017548,93209.0,93205.0,0.20757898]
[1736449004398,0.00017548,93209.0,93205.0,0.20657898]
[1736449004760,0.00017548,93209.0,93205.0,0.20757898]
[1736449005133,0.00017548,93209.0,93205.0,0.20857898]
[1736449005970,0.00017548,93209.0,93202.0,0.20858498]
[1736449007189,0.00017548,93209.0,93205.0,0.214579]
[1736449008434,0.00017548,93209.0,93205.0,0.216579]
[1736449008666,0.00017548,93209.0,93205.0,0.217579]
[1736449010298,0.00017548,93209.0,93205.0,0.003]
[1736449011154,0.00017548,93209.0,93203.0,0.20858298]
[1736449012528,0.00017548,93209.0,93203.0,0.20958298]
[1736449014044,0.00017548,93209.0,93203.0,0.21158298]
[1736449015954,0.00017548,93209.0,93203.0,0.20258296]
[1736449019051,0.00017548,93209.0,93204.0,6.998e-05]
[1736449020630,0.00017548,93209.0,93204.0,0.00306998]
[1736449021107,0.00017548,93209.0,93203.0,0.19365292]
[1736449021442,0.00017548,93209.0,93073.0,0.4]
[1736449021443,0.00017548,93209.0,93208.0,0.1244]
[1736449021647,0.00017548,93209.0,93208.0,0.4242071]
[1736449021850,0.00017548,93209.0,93208.0,0.45433432]
[1736449022033,0.00017548,93209.0,93208.0,0.23689976]
[1736449022242,0.00017548,93209.0,93208.0,0.0773]
[1736449022659,9.749e-05,93209.0,93208.0,0.0773]
[1736449022860,9.749e-05,93209.0,93202.0,0.214585]
[1736449023502,9.749e-05,93209.0,93208.0,0.001]
[1736449023906,9.749e-05,93209.0,93204.0,0.214583]
[1736449025622,0.03500487,93209.0,93204.0,0.214583]
[1736449025821,0.03500487,93209.0,93202.0,0.214585]
[1736449026058,0.24957687,93209.0,93201.0,0.06829998]
[1736449026264,0.03500487,93209.0,93202.0,0.214587]
[1736449026461,0.03500487,93209.0,93204.0,0.001]
[1736449026661,0.214573,93208.0,93204.0,0.001]
[1736449026863,0.214573,93208.0,93199.0,0.214593]
[1736449027416,0.03500487,93209.0,93199.0,0.214593]
[1736449027593,0.03600487,93209.0,93199.0,0.214593]
[1736449027999,0.03500487,93209.0,93199.0,0.214593]
[1736449028181,0.03500487,93209.0,93202.0,0.214586]
[1736449028182,0.001,93208.0,93202.0,0.214586]
[1736449029651,0.03500487,93209.0,93202.0,0.214586]
[1736449029857,0.03600487,93209.0,93202.0,0.214586]
[1736449030181,0.03487574,93209.0,93202.0,0.214586]
[1736449030460,0.0001704,93211.0,93202.0,0.215586]
[1736449030686,0.214569,93210.0,93202.0,0.001]
[1736449030858,0.214569,93210.0,93199.0,0.214593]
[1736449031085,0.214569,93210.0,93199.0,0.20568336]
[1736449032057,0.214569,93210.0,93199.0,0.42027736]
[1736449033559,0.001,93210.0,93199.0,0.42027736]
[1736449034364,0.001,93210.0,93202.0,0.214586]
[1736449035956,0.001,93210.0,93202.0,0.20558598]
[1736449036899,0.03519125,93211.0,93202.0,0.20558598]
[1736449037076,0.03519125,93211.0,93199.0,0.20568336]
[1736449037287,0.001,93210.0,93202.0,0.214585]
[1736449038066,0.03519125,93211.0,93202.0,0.214585]
[1736449038429,0.001,93210.0,93202.0,0.214585]
[1736449038637,0.03519125,93211.0,93202.0,0.214585]
[1736449039976,0.214569,93210.0,93199.0,9.038e-05]
[1736449040174,0.03519125,93211.0,93199.0,9.038e-05]
[1736449040380,0.214588,93202.0,93199.0,9.038e-05]
[1736449040938,0.214588,93202.0,93198.0,0.06999036]
[1736449041919,0.214588,93202.0,93199.0,0.002]
[1736449043140,0.214588,93202.0,93198.0,0.07099036]
[1736449043550,0.214588,93202.0,93198.0,0.07199036]
[1736449043767,0.214588,93202.0,93198.0,0.06999036]
[1736449043932,0.214588,93202.0,93199.0,0.001]
[1736449044155,0.24975925,93211.0,93200.0,0.10429976]
[1736449044156,0.03519125,93211.0,93200.0,0.10429976]
[1736449044366,0.13308053,93210.0,93199.0,0.001]